fUSD/lending_fUSD_20240607
["ID","MTS","AMOUNT","RATE_DAILY","PERIOD"]
[328736300,1717752644638,-400.0,0.00027532,2]
[328736301,1717752644647,-156.4,0.00027695,2]
[328736302,1717752644658,-151.59,0.00027749,2]
[328736303,1717752644667,-1000.0,0.00027789,14]
[328736304,1717752644676,-600.0,0.00027965,7]
[328736305,1717752644686,-8659.51459542,0.00028,2]
[328736306,1717752644695,-156.4,0.00028168,2]
[328736308,1717752644705,-1000.0,0.0002818,14]
[328736309,1717752644714,-2625.0,0.000282,2]
[328736310,1717752644723,-600.0,0.00028301,7]
[328736311,1717752644734,-600.0,0.00028301,7]
[328736312,1717752644744,-166.28,0.00028343,2]
[328736313,1717752644753,-314.13317884,0.00028368,7]
[328736314,1717752644763,-782.61360794,0.00028368,2]
[328736315,1717752644773,-1005.06568756,0.00028368,2]
[328736316,1717752644782,-600.0,0.00028397,8]
[328736317,1717752644792,-600.0,0.00028397,8]
[328736318,1717752644801,-600.0,0.00028405,8]
[328736319,1717752644811,-600.0,0.00028405,8]
[328736320,1717752644820,-2110.0,0.000285,15]
[328736321,1717752644830,-1000.0,0.00028571,14]
[328736323,1717752644840,-1303.0,0.00028609,2]
[328736324,1717752644849,-5780.0,0.00028609,2]
[328736326,1717752644860,-5152.0,0.00028609,2]
[328736328,1717752644870,-346.246,0.00028609,2]
[328736330,1717752644880,-1467.0,0.00028609,2]
[328736332,1717752644890,-38025.0,0.00028609,2]
[328736334,1717752644904,-600.0,0.00028612,8]
[328736336,1717752644913,-156.4,0.00028641,2]
[328736338,1717752644922,-218.77937739,0.00028666,4]
[328736340,1717752644933,-600.0,0.00028704,8]
[328736342,1717752644943,-600.0,0.000288,8]
[328736344,1717752644952,-600.0,0.000288,8]
[328736346,1717752644961,-600.0,0.000288,8]
[328736348,1717752644971,-730.74858228,0.000288,8]
[328736350,1717752644981,-678.59,0.00028921,2]
[328736352,1717752644991,-180.0,0.00028954,2]
[328736354,1717752645000,-1000.0,0.00028963,14]
[328736355,1717752645009,-329.44740147,0.00028999,2]
[328736357,1717752645020,-410.90338375,0.00028999,2]
[328736359,1717752645030,-2110.0,0.00029,15]
[328736361,1717752645040,-1350.0,0.00029,2]
[328736363,1717752645049,-4867.42,0.0002901,2]
[328736365,1717752645059,-438.08,0.00029041,2]
[328736367,1717752645068,-1258.78,0.00029041,2]
[328736369,1717752645078,-2094.59,0.00029045,2]
[328736371,1717752645087,-379.99,0.00029087,2]
[328736373,1717752645096,-681.92361697,0.00029235,15]
[328736375,1717752645105,-155.0,0.00029264,2]
[328736377,1717752645115,-681.92361697,0.00029309,15]
[328736379,1717752645124,-155.15244304,0.00029338,2]
[328736381,1717752645135,-155.38009275,0.0002934,2]
[328736383,1717752645144,-608.06,0.00029342,2]
[328736384,1717752645154,-157.27320036,0.00029348,2]
[328736386,1717752645163,-1000.0,0.00029354,14]
[328736388,1717752645173,-681.92361697,0.00029383,15]
[328736390,1717752645182,-508.8,0.000294,2]
[328736392,1717752645191,-354.0,0.000294,2]
[328736394,1717752645200,-900.0,0.000294,2]
[328736396,1717752645210,-347.98665744,0.00029418,2]
[328736398,1717752645219,-154.71475256,0.00029421,2]
[328736400,1717752645229,-1000.0,0.00029436,2]
[328736402,1717752645238,-159.02707737,0.00029451,2]
[328736404,1717752645248,-398.39,0.00029452,2]
[328736406,1717752645257,-681.92361697,0.00029457,15]
[328736408,1717752645267,-864.11505224,0.00029461,2]
[328736410,1717752645276,-155.15244304,0.00029478,2]
[328736411,1717752645285,-7500.0,0.00029485,2]
[328736413,1717752645294,-159.02707737,0.00029487,2]
[328736415,1717752645304,-2110.0,0.000295,15]
[328736417,1717752645313,-150.0,0.000295,2]
[328736419,1717752645323,-157.27320036,0.00029503,2]
[328736421,1717752645333,-864.1150522,0.00029504,2]
[328736423,1717752645342,-30263.0,0.00029506,2]
[328736425,1717752645352,-800.0,0.00029507,2]
[328736427,1717752645362,-500.0,0.00029509,2]
[328736429,1717752645371,-232.53046765,0.00029509,2]
[328736431,1717752645381,-500.0,0.00029509,2]
[328736433,1717752645390,-357.5783019,0.00029509,2]
[328736435,1717752645399,-159.02707737,0.00029526,2]
[328736437,1717752645408,-227.18337043,0.0002953,2]
[328736439,1717752645418,-681.92361697,0.00029531,15]
[328736440,1717752645428,-864.1150522,0.00029547,2]
[328736442,1717752645439,-227.18337043,0.0002955,2]
[328736444,1717752645448,-156.32,0.00029551,2]
[328736446,1717752645458,-237.36098672,0.00029561,4]
[328736448,1717752645468,-28946.097,0.00029561,4]
[328736450,1717752645478,-28946.098,0.00029561,4]
[328736452,1717752645488,-28946.098,0.00029561,4]
[328736454,1717752645498,-28946.097,0.00029561,4]
[328736456,1717752645508,-28946.098,0.00029561,4]
[328736458,1717752645517,-154.04493063,0.00029568,2]
[328736460,1717752645529,-150.0,0.0002959,2]
[328736462,1717752645539,-864.1150522,0.0002959,2]
[328736464,1717752645549,-500.0,0.00029591,2]
[328736466,1717752645559,-200.0,0.00029591,2]
[328736468,1717752645568,-681.92361697,0.00029604,15]
[328736470,1717752645581,-150.0,0.00029609,2]
[328736472,1717752645591,-157.16913306,0.00029614,2]
[328736474,1717752645600,-150.0,0.00029616,2]
[328736476,1717752645610,-150.0,0.00029619,2]
[328736478,1717752645620,-300.0,0.0002962,2]
[328736480,1717752645630,-500.0,0.0002962,2]
[328736482,1717752645641,-500.0,0.00029624,4]
[328736484,1717752645651,-161.41092731,0.00029624,4]
[328736487,1717752645661,-157.27320036,0.00029625,2]
[328736489,1717752645671,-864.1150522,0.00029634,2]
[328736491,1717752645681,-163.54975908,0.00029635,2]
[328736493,1717752645691,-1500.0,0.00029638,2]
[328736495,1717752645701,-155.38009275,0.00029638,2]
[328736497,1717752645711,-150.0,0.00029642,2]
[328736499,1717752645721,-150.0,0.00029654,2]
[328736501,1717752645730,-227.18337043,0.00029661,2]
[328736502,1717752645739,-150.0,0.00029668,2]
[328736504,1717752645749,-155.29569903,0.00029676,2]
[328736506,1717752645758,-864.1150522,0.00029677,2]
[328736508,1717752645768,-681.92361697,0.00029678,15]
[328736510,1717752645777,-150.0,0.00029685,2]
[328736534,1717752645787,-155.15244304,0.00029687,2]
[328736536,1717752646015,-227.18337043,0.00029689,2]
[328736538,1717752646025,-150.0,0.00029693,2]
[328736540,1717752646035,-150.0,0.000297,2]
[328736542,1717752646045,-489.5733238,0.000297,2]
[328736544,1717752646055,-1500.0,0.00029701,2]
[328736547,1717752646064,-155.38009275,0.00029707,2]
[328736550,1717752646074,-200.0,0.00029711,2]
[328736553,1717752646084,-155.0,0.00029712,2]
[328736555,1717752646093,-489.57332377,0.00029716,2]
[328736557,1717752646103,-150.0,0.00029719,2]
[328736559,1717752646113,-864.1150522,0.0002972,2]
[328736561,1717752646122,-150.0,0.00029725,2]
[328736562,1717752646131,-489.57332377,0.00029732,2]
[328736564,1717752646141,-150.0,0.00029736,2]
[328736566,1717752646151,-1000.0,0.00029746,14]
[328736569,1717752646161,-489.57332377,0.00029747,2]
[328736571,1717752646170,-681.92361697,0.00029752,15]
[328736572,1717752646179,-800.0,0.00029753,2]
[328736574,1717752646188,-499.0084,0.00029759,2]
[328736576,1717752646197,-155.46393467,0.00029759,2]
[328736578,1717752646207,-2561.1159,0.0002976,2]
[328736580,1717752646216,-154.0,0.00029763,5]
[328736582,1717752646226,-3589.31814271,0.00029763,2]
[328736584,1717752646236,-489.57332377,0.00029763,2]
[328736586,1717752646246,-864.1150522,0.00029763,2]
[328736588,1717752646256,-6309.72974536,0.00029763,2]
[328736590,1717752646266,-397.19496043,0.00029763,2]
[328736592,1717752646276,-503.07410992,0.00029763,2]
[328736594,1717752646286,-196.1831962,0.00029763,7]
[328736596,1717752646295,-196.1831962,0.00029763,7]
[328736598,1717752646305,-196.68,0.00029763,7]
[328736600,1717752646314,-157.04655696,0.00029763,7]
[328736602,1717752646324,-157.04655696,0.00029763,7]
[328736604,1717752646334,-157.04655696,0.00029763,7]
[328736606,1717752646344,-157.04655696,0.00029763,7]
[328736608,1717752646353,-157.04655696,0.00029763,7]
[328736610,1717752646362,-157.04655696,0.00029763,7]
[328736612,1717752646372,-157.04655696,0.00029763,7]
[328736614,1717752646382,-157.04655696,0.00029763,7]
[328736616,1717752646391,-157.04655696,0.00029763,7]
[328736618,1717752646401,-157.04655696,0.00029763,7]
[328736620,1717752646411,-157.04655696,0.00029763,7]
[328736622,1717752646421,-157.04655696,0.00029763,7]
[328736624,1717752646430,-157.04655696,0.00029763,7]
[328736626,1717752646440,-157.04655696,0.00029763,7]
[328736628,1717752646450,-600.0,0.00029763,2]
[328736630,1717752646460,-150.0,0.00029772,2]
[328736632,1717752646469,-1000.0,0.00029774,2]
[328736634,1717752646479,-509.143739,0.00029775,7]
[328736636,1717752646489,-509.143739,0.00029775,7]
[328736638,1717752646498,-3589.31814264,0.00029775,2]
[328736640,1717752646508,-1500.0,0.00029779,2]
[328736642,1717752646518,-150.0,0.00029787,2]
[328736644,1717752646528,-3589.31814264,0.00029788,2]
[328736646,1717752646538,-150.0,0.0002979,2]
[328736648,1717752646548,-254.93585412,0.0002979,2]
[328736650,1717752646558,-150.0,0.00029795,2]
[328736652,1717752646568,-488.0,0.000298,14]
[328736654,1717752646579,-481.0,0.000298,14]
[328736656,1717752646588,-8914.04509895,0.000298,4]
[328736658,1717752646599,-345.0,0.000298,2]
[328736660,1717752646608,-691.0,0.000298,2]
[328736662,1717752646618,-250000.0,0.000298,2]
[328736664,1717752646628,-160.0,0.000298,2]
[328736666,1717752646637,-151.0,0.000298,7]
[328736668,1717752646648,-150.0,0.000298,2]
[328736670,1717752646658,-1001.38,0.000298,2]
[328736672,1717752646667,-151.0,0.000298,7]
[328736673,1717752646677,-509.143739,0.000298,7]
[328736674,1717752646686,-509.143739,0.000298,7]
[328736676,1717752646696,-2158.92800196,0.000298,2]
[328736677,1717752646705,-151.0,0.000298,7]
[328736678,1717752646715,-300.06,0.000298,2]
[328736679,1717752646725,-150.0,0.000298,6]
[328736680,1717752646735,-150.0,0.000298,6]
[328736681,1717752646744,-3589.31814264,0.000298,2]
[328736682,1717752646754,-347.98665744,0.00029801,2]
[328736683,1717752646764,-227.18337043,0.00029802,2]
[328736684,1717752646773,-347.98665744,0.00029803,2]
[328736685,1717752646783,-382.24980333,0.00029805,2]
[328736686,1717752646792,-3589.31814264,0.00029813,2]
[328736687,1717752646802,-155.46393467,0.00029823,2]
[328736688,1717752646812,-150.0,0.00029825,2]
[328736689,1717752646821,-3589.31814264,0.00029825,2]
[328736690,1717752646832,-150.0,0.00029826,2]
[328736691,1717752646842,-681.92361697,0.00029826,15]
[328736692,1717752646851,-150.0,0.00029828,2]
[328736693,1717752646860,-481.0,0.0002983,15]
[328736694,1717752646870,-6309.72974536,0.00029832,2]
[328736695,1717752646879,-397.19496041,0.00029832,2]
[328736696,1717752646889,-503.07410991,0.00029832,2]
[328736697,1717752646902,-481.0,0.00029833,15]
[328736698,1717752646911,-177.0,0.00029833,15]
[328736699,1717752646921,-800.0,0.00029836,2]
[328736700,1717752646931,-3589.31814264,0.00029838,2]
[328736701,1717752646941,-481.0,0.0002984,15]
[328736702,1717752646951,-481.0,0.00029843,15]
[328736703,1717752646961,-481.0,0.00029843,15]
[328736704,1717752646973,-77769.6083543,0.00029843,2]
[328736705,1717752646982,-177.0,0.00029843,15]
[328736706,1717752646992,-150.0,0.00029849,2]
[328736707,1717752647002,-481.0,0.0002985,15]
[328736708,1717752647012,-153.08,0.0002985,2]
[328736709,1717752647021,-3589.31814264,0.0002985,2]
[328736710,1717752647031,-156.32,0.00029851,2]
[328736711,1717752647040,-481.0,0.00029853,15]
[328736712,1717752647051,-481.0,0.00029853,15]
[328736713,1717752647061,-177.0,0.00029853,15]
[328736715,1717752647071,-155.38009275,0.00029856,2]
[328736717,1717752647081,-162.15696924,0.00029857,2]
[328736718,1717752647091,-4084.64028539,0.00029859,2]
[328736720,1717752647101,-150.0,0.00029859,2]
[328736722,1717752647110,-154.04493063,0.00029859,2]
[328736724,1717752647120,-100783.07339616,0.0002986,2]
[328736726,1717752647129,-1203.42195458,0.0002986,2]
[328736728,1717752647139,-155.0,0.0002986,2]
[328736730,1717752647148,-257.9877105,0.0002986,2]
[328736732,1717752647157,-446.79515573,0.0002986,2]
[328736734,1717752647167,-2000.0,0.0002986,2]
[328736736,1717752647176,-200.0,0.0002986,2]
[328736737,1717752647186,-200.0,0.0002986,2]
[328736738,1717752647195,-2465.2037,0.0002986,2]
[328736739,1717752647204,-151.0,0.0002986,7]
[328736740,1717752647214,-509.143739,0.0002986,7]
[328736741,1717752647223,-509.143739,0.0002986,7]
[328736742,1717752647233,-151.0,0.0002986,7]
[328736743,1717752647242,-500.0,0.0002986,2]
[328736744,1717752647251,-500.0,0.0002986,2]
[328736745,1717752647260,-500.0,0.0002986,2]
[328736746,1717752647270,-500.0,0.0002986,2]
[328736747,1717752647279,-810.7848462,0.0002986,2]
[328736748,1717752647288,-12730.0,0.00029861,5]
[328736749,1717752647298,-170.02187043,0.00029861,2]
[328736750,1717752647307,-4536.91288282,0.00029861,2]
[328736751,1717752647317,-172.65390318,0.00029861,2]
[328736752,1717752647326,-155.54456278,0.00029861,2]
[328736753,1717752647336,-493.74958075,0.00029861,2]
[328736754,1717752647345,-799.54823411,0.00029861,2]
[328736755,1717752647355,-224.88847247,0.00029861,2]
[328736756,1717752647364,-325.53994662,0.00029861,2]
[328736757,1717752647374,-230.00896145,0.00029861,2]
[328736758,1717752647383,-155.74645844,0.00029861,2]
[328736759,1717752647392,-244.32990357,0.00029861,2]
[328736760,1717752647402,-236.9628735,0.00029861,2]
[328736761,1717752647411,-198.82180594,0.00029861,2]
[328736762,1717752647421,-200.0,0.00029861,2]
[328736763,1717752647430,-1734.52286818,0.00029861,2]
[328736764,1717752647439,-272.43471706,0.00029861,2]
[328736765,1717752647449,-1245.63576172,0.00029861,2]
[328736766,1717752647458,-309.40359952,0.00029861,2]
[328736767,1717752647467,-1232.24773249,0.00029861,2]
[328736768,1717752647477,-1505.50155077,0.00029861,3]
[328736769,1717752647486,-155.0,0.00029861,2]
[328736770,1717752647496,-283.9402185,0.00029861,2]
[328736771,1717752647505,-4315.04578451,0.00029861,2]
[328736772,1717752647515,-155.19057024,0.00029861,2]
[328736773,1717752647524,-238.64885569,0.00029861,2]
[328736774,1717752647534,-592.83380275,0.00029861,2]
[328736775,1717752647543,-234.77353763,0.00029861,2]
[328736776,1717752647553,-792.10221056,0.00029861,2]
[328736777,1717752647562,-310.59491321,0.00029861,2]
[328736778,1717752647571,-155.55752292,0.00029861,2]
[328736779,1717752647581,-155.89388956,0.00029861,2]
[328736780,1717752647590,-720.98832443,0.00029861,2]
[328736781,1717752647599,-1353.12939317,0.00029861,2]
[328736782,1717752647608,-1363.12480313,0.00029861,2]
[328736783,1717752647618,-4655.68108884,0.00029861,2]
[328736784,1717752647628,-1480.62032495,0.00029861,2]
[328736785,1717752647637,-283.58841885,0.00029861,2]
[328736786,1717752647647,-156.15670359,0.00029861,2]
[328736787,1717752647657,-937.5156977,0.00029861,2]
[328736788,1717752647666,-156.56563572,0.00029861,2]
[328736789,1717752647676,-3019.98930982,0.00029861,2]
[328736790,1717752647685,-300.85424506,0.00029861,2]
[328736791,1717752647695,-4706.14057747,0.00029861,2]
[328736792,1717752647704,-2628.16672689,0.00029861,2]
[328736793,1717752647714,-378.09562348,0.00029861,2]
[328736794,1717752647724,-570.35221782,0.00029861,2]
[328736795,1717752647733,-496.92141727,0.00029861,2]
[328736796,1717752647743,-155.84303163,0.00029861,2]
[328736797,1717752647757,-156.46996708,0.00029861,2]
[328736798,1717752647766,-354.27474709,0.00029861,2]
[328736799,1717752647776,-172.01737033,0.00029861,2]
[328736800,1717752647785,-549.64304407,0.00029861,2]
[328736801,1717752647795,-252.82691397,0.00029861,2]
[328736802,1717752647804,-317.03995395,0.00029861,2]
[328736803,1717752647813,-1214.21853891,0.00029861,2]
[328736804,1717752647823,-155.0,0.00029861,2]
[328736805,1717752647833,-912.64115573,0.00029861,2]
[328736806,1717752647842,-155.0,0.00029861,2]
[328736807,1717752647851,-1979.7425713,0.00029861,2]
[328736808,1717752647863,-345.9,0.00029861,2]
[328736809,1717752647872,-526.88019134,0.00029861,2]
[328736810,1717752647883,-735.57281354,0.00029861,2]
[328736811,1717752647897,-583.96348907,0.00029861,2]
[328736812,1717752647906,-1488.04610395,0.00029861,2]
[328736813,1717752647918,-4180.36012364,0.00029861,2]
[328736814,1717752647927,-708.39098297,0.00029861,2]
[328736815,1717752647941,-2248.0709294,0.00029861,2]
[328736816,1717752647950,-166.7914555,0.00029861,2]
[328736817,1717752647961,-1012.05273359,0.00029861,2]
[328736818,1717752647971,-151.0,0.00029861,7]
[328736819,1717752647981,-509.143739,0.00029861,7]
[328736820,1717752647991,-509.143739,0.00029861,7]
[328736821,1717752648000,-151.0,0.00029861,7]
[328736822,1717752648009,-500.0,0.00029862,4]
[328736823,1717752648018,-500.0,0.00029862,4]
[328736824,1717752648028,-500.0,0.00029862,4]
[328736825,1717752648038,-500.0,0.00029862,4]
[328736826,1717752648047,-500.0,0.00029862,4]
[328736827,1717752648057,-500.0,0.00029862,4]
[328736828,1717752648067,-500.0,0.00029862,4]
[328736829,1717752648076,-500.0,0.00029862,4]
[328736830,1717752648086,-538.24567796,0.00029862,4]
[328736831,1717752648097,-152.59054515,0.00029862,2]
[328736832,1717752648106,-3589.31814264,0.00029863,2]
[328736833,1717752648115,-179.04739428,0.00029863,5]
[328736834,1717752648125,-182021.34885529,0.00029863,13]
[328736835,1717752648135,-503.47632706,0.00029863,4]
[328736836,1717752648144,-500.0,0.00029863,4]
[328736837,1717752648154,-500.0,0.00029863,4]
[328736838,1717752648164,-500.0,0.00029863,4]
[328736839,1717752648173,-289.78630681,0.00029863,4]
[328736840,1717752648182,-530.26314479,0.00029863,4]
[328736841,1717752648191,-518.36176064,0.00029863,4]
[328736842,1717752648200,-500.0,0.00029863,4]
[328736843,1717752648210,-500.0,0.00029863,4]
[328736844,1717752648219,-500.0,0.00029863,4]
[328736845,1717752648229,-535.25670092,0.00029863,4]
[328736846,1717752648238,-500.0,0.00029863,4]
[328736847,1717752648248,-516.41420774,0.00029863,4]
[328736848,1717752648258,-500.0,0.00029863,4]
[328736849,1717752648267,-500.0,0.00029863,4]
[328736850,1717752648277,-500.0,0.00029863,4]
[328736851,1717752648286,-500.0,0.00029863,4]
[328736852,1717752648296,-500.0,0.00029863,4]
[328736853,1717752648306,-613.14582558,0.00029863,4]
[328736854,1717752648316,-500.0,0.00029863,4]
[328736855,1717752648327,-500.0,0.00029863,4]
[328736856,1717752648336,-500.0,0.00029863,4]
[328736857,1717752648345,-500.0,0.00029863,4]
[328736858,1717752648354,-500.0,0.00029863,2]
[328736859,1717752648364,-500.0,0.00029863,2]
[328736860,1717752648374,-500.0,0.00029863,2]
[328736861,1717752648383,-545.80805136,0.00029863,4]
[328736862,1717752648393,-500.6255537,0.00029863,2]
[328736863,1717752648403,-500.0,0.00029863,4]
[328736864,1717752648413,-529.27169907,0.00029863,4]
[328736865,1717752648422,-500.0,0.00029863,4]
[328736866,1717752648432,-500.0,0.00029863,4]
[328736867,1717752648442,-500.0,0.00029863,4]
[328736868,1717752648451,-548.38758321,0.00029863,4]
[328736869,1717752648461,-500.0,0.00029863,4]
[328736870,1717752648471,-500.0,0.00029863,4]
[328736871,1717752648480,-500.0,0.00029863,4]
[328736872,1717752648490,-500.0,0.00029863,4]
[328736873,1717752648500,-500.0,0.00029863,4]
[328736874,1717752648509,-500.0,0.00029863,4]
[328736875,1717752648519,-500.0,0.00029863,4]
[328736876,1717752648528,-500.0,0.00029863,4]
[328736877,1717752648539,-500.0,0.00029863,4]
[328736878,1717752648549,-501.31395985,0.00029863,4]
[328736879,1717752648559,-500.0,0.00029863,4]
[328736880,1717752648568,-560.2956908,0.00029863,4]
[328736881,1717752648579,-500.0,0.00029863,4]
[328736882,1717752648588,-500.0,0.00029863,4]
[328736883,1717752648598,-466.5,0.00029863,4]
[328736884,1717752648608,-500.0,0.00029863,4]
[328736885,1717752648618,-500.0,0.00029863,4]
[328736886,1717752648627,-314.29293208,0.00029863,4]
[328736887,1717752648637,-525.65433253,0.00029863,4]
[328736888,1717752648646,-500.0,0.00029863,4]
[328736889,1717752648656,-500.0,0.00029863,4]
[328736890,1717752648666,-500.0,0.00029863,4]
[328736891,1717752648675,-185.36730383,0.00029863,4]
[328736892,1717752648685,-532.76976597,0.00029863,4]
[328736893,1717752648695,-500.0,0.00029863,4]
[328736894,1717752648704,-500.0,0.00029863,4]
[328736895,1717752648713,-500.0,0.00029863,4]
[328736896,1717752648723,-500.0,0.00029863,4]
[328736897,1717752648732,-500.0,0.00029863,2]
[328736898,1717752648742,-500.0,0.00029863,4]
[328736899,1717752648752,-500.0,0.00029863,2]
[328736900,1717752648761,-500.0,0.00029863,4]
[328736901,1717752648771,-500.0,0.00029863,2]
[328736902,1717752648780,-500.0,0.00029863,4]
[328736903,1717752648789,-500.0,0.00029863,2]
[328736904,1717752648798,-500.0,0.00029863,4]
[328736905,1717752648807,-500.0,0.00029863,4]
[328736906,1717752648817,-500.0,0.00029863,4]
[328736907,1717752648828,-314.63731239,0.00029863,4]
[328736908,1717752648837,-500.0,0.00029863,4]
[328736909,1717752648846,-500.0,0.00029863,4]
[328736910,1717752648855,-500.0,0.00029863,4]
[328736911,1717752648865,-500.0,0.00029863,4]
[328736912,1717752648874,-479.29,0.00029863,4]
[328736913,1717752648884,-284.79533205,0.00029863,4]
[328736914,1717752648894,-500.0,0.00029863,4]
[328736915,1717752648907,-500.0,0.00029863,4]
[328736916,1717752648916,-500.0,0.00029863,4]
[328736917,1717752648926,-500.0,0.00029863,4]
[328736918,1717752648937,-500.0,0.00029863,4]
[328736919,1717752648946,-644.96,0.00029863,4]
[328736920,1717752648955,-500.0,0.00029863,4]
[328736921,1717752648964,-500.0,0.00029863,4]
[328736922,1717752648975,-519.53,0.00029863,4]
[328736923,1717752648986,-612.57739714,0.00029863,4]
[328736924,1717752648996,-500.0,0.00029863,4]
[328736925,1717752649005,-500.0,0.00029863,4]
[328736926,1717752649015,-500.0,0.00029863,4]
[328736927,1717752649024,-500.0,0.00029863,4]
[328736928,1717752649033,-500.0,0.00029863,4]
[328736929,1717752649043,-500.0,0.00029863,4]
[328736930,1717752649052,-500.0,0.00029863,4]
[328736931,1717752649062,-530.83422202,0.00029863,4]
[328736932,1717752649072,-500.0,0.00029863,4]
[328736933,1717752649083,-500.0,0.00029863,4]
[328736934,1717752649094,-529.68894136,0.00029863,4]
[328736935,1717752649103,-500.0,0.00029863,4]
[328736936,1717752649113,-500.0,0.00029863,4]
[328736937,1717752649124,-500.0,0.00029863,4]
[328736938,1717752649133,-500.0,0.00029863,4]
[328736939,1717752649143,-500.0,0.00029863,4]
[328736940,1717752649153,-500.0,0.00029863,4]
[328736941,1717752649163,-500.0,0.00029863,4]
[328736942,1717752649173,-500.0,0.00029863,4]
[328736943,1717752649183,-500.0,0.00029863,4]
[328736944,1717752649192,-500.0,0.00029863,4]
[328736945,1717752649202,-500.0,0.00029863,4]
[328736946,1717752649212,-500.0,0.00029863,4]
[328736947,1717752649222,-500.0,0.00029863,4]
[328736948,1717752649231,-500.0,0.00029863,4]
[328736949,1717752649241,-500.0,0.00029863,4]
[328736950,1717752649251,-374.07346593,0.00029863,4]
[328736951,1717752649260,-500.0,0.00029863,4]
[328736952,1717752649270,-500.0,0.00029863,4]
[328736953,1717752649279,-500.0,0.00029863,4]
[328736954,1717752649288,-500.0,0.00029863,4]
[328736955,1717752649298,-318.27224446,0.00029863,4]
[328736956,1717752649308,-500.0,0.00029863,4]
[328736957,1717752649317,-500.0,0.00029863,4]
[328736958,1717752649329,-500.0,0.00029863,4]
[328736959,1717752649338,-500.0,0.00029863,4]
[328736960,1717752649347,-500.0,0.00029863,4]
[328736961,1717752649356,-500.0,0.00029863,4]
[328736962,1717752649365,-500.0,0.00029863,4]
[328736963,1717752649375,-268.02,0.00029863,4]
[328736964,1717752649384,-500.0,0.00029863,4]
[328736965,1717752649394,-218.92552642,0.00029863,4]
[328736966,1717752649403,-500.0,0.00029863,4]
[328736967,1717752649413,-500.0,0.00029863,4]
[328736968,1717752649422,-500.0,0.00029863,4]
[328736969,1717752649432,-500.0,0.00029863,4]
[328736970,1717752649604,-500.0,0.00029863,4]
[328736971,1717752649614,-500.0,0.00029863,4]
[328736972,1717752649624,-500.0,0.00029863,4]
[328736973,1717752649634,-500.0,0.00029863,4]
[328736974,1717752649644,-500.0,0.00029863,4]
[328736975,1717752649653,-500.0,0.00029863,4]
[328736976,1717752649662,-500.0,0.00029863,4]
[328736977,1717752649671,-500.0,0.00029863,4]
[328736978,1717752649681,-500.0,0.00029863,4]
[328736979,1717752649690,-500.0,0.00029863,4]
[328736980,1717752649700,-500.0,0.00029863,4]
[328736981,1717752649710,-500.0,0.00029863,4]
[328736982,1717752649719,-500.0,0.00029863,4]
[328736983,1717752649729,-500.0,0.00029863,4]
[328736984,1717752649738,-553.89658407,0.00029863,4]
[328736985,1717752649748,-500.0,0.00029863,4]
[328736986,1717752649757,-500.0,0.00029863,4]
[328736987,1717752649767,-500.0,0.00029863,4]
[328736988,1717752649776,-500.0,0.00029863,4]
[328736989,1717752649786,-500.0,0.00029863,4]
[328736990,1717752649795,-500.0,0.00029863,4]
[328736991,1717752649805,-500.0,0.00029863,4]
[328736992,1717752649814,-500.0,0.00029863,4]
[328736993,1717752649824,-500.0,0.00029863,4]
[328736994,1717752649834,-500.0,0.00029863,4]
[328736995,1717752649844,-472.66172349,0.00029863,4]
[328736996,1717752649853,-500.0,0.00029863,4]
[328736997,1717752649862,-499.09358458,0.00029863,4]